{"text_format":"1","workbook":"xlsx","n_sheets":2,"sheets":["Appendix A Part 1","Appendix A Part 2"],"not_rendered":{"charts":0,"images":0,"macros":0,"external_links":0,"defined_names":2,"comments":0,"pivot_tables":0},"unopened":[],"bounds":{"document_bytes":16777216,"sheet_cells":100000,"rows_first":2000,"rows_last":500,"rows_between":2000,"halvings":0,"cell_chars":16384,"cell_head_chars":4096},"cells_cut":0,"cells_raw":0,"read":"whole","date_system":"1900"}

{"sheet":"Appendix A Part 1","index":0,"n_rows":96,"n_cols":22,"rows_kept":96,"cut":false,"hidden":false,"merged":[[8,8,8,15],[12,2,12,3],[13,2,13,3],[21,8,21,15],[24,9,24,15],[23,9,23,15],[31,9,31,15],[14,12,14,15],[15,8,15,11],[15,12,15,15],[19,13,19,14],[19,2,19,3],[18,5,18,6],[30,8,30,15],[22,5,23,5],[22,6,23,6],[22,3,23,4],[24,1,24,2],[25,1,25,2],[27,1,27,2],[28,1,28,2],[22,1,23,2],[25,9,25,15],[26,1,26,2],[0,0,0,15],[37,6,39,6],[56,3,56,5],[55,3,55,5],[54,3,54,5],[37,1,39,2],[5,1,5,6],[17,1,17,6],[6,1,6,6],[21,1,21,6],[6,8,6,15],[8,1,8,6],[50,1,52,2],[1,0,3,16],[17,8,17,15],[11,8,11,15],[5,8,5,15],[11,1,11,6],[41,11,41,12],[9,1,9,6],[7,8,7,15],[9,8,9,15],[7,1,7,6],[12,9,12,15],[86,1,86,3],[86,7,86,11],[86,12,86,15],[81,1,81,3],[82,1,82,3],[84,7,84,11],[85,7,85,11],[87,4,87,6],[87,7,87,11],[87,12,87,15],[81,4,81,6],[37,11,39,12],[79,4,79,6],[79,7,79,11],[80,12,80,15],[81,12,81,15],[82,12,82,15],[83,12,83,15],[84,12,84,15],[85,12,85,15],[80,4,80,6],[49,13,49,15],[48,11,48,12],[49,11,49,12],[47,11,47,12],[43,13,43,15],[44,13,44,15],[45,13,45,15],[46,13,46,15],[52,3,52,5],[37,10,39,10],[37,9,39,9],[37,7,39,8],[49,7,49,8],[40,7,40,8],[73,11,73,15],[74,11,74,15],[41,7,41,8],[66,1,66,5],[64,1,64,5],[71,14,71,15],[63,1,63,5],[73,7,73,10],[74,7,74,10],[51,3,51,5],[50,3,50,5],[43,11,43,12],[44,11,44,12],[45,11,45,12],[46,11,46,12],[14,1,14,6],[22,9,22,15],[39,26,41,26],[40,1,48,1],[37,3,39,5],[40,3,40,5],[41,3,41,5],[42,3,42,5],[47,3,47,5],[48,3,48,5],[36,0,36,16],[37,13,39,15],[40,13,40,15],[41,13,41,15],[42,13,42,15],[47,13,47,15],[48,13,48,15],[48,7,48,8],[47,7,47,8],[42,7,42,8],[37,20,39,20],[42,11,42,12],[37,17,39,17],[40,11,40,12],[25,3,25,4],[27,3,27,4],[28,3,28,4],[85,1,85,3],[80,1,80,3],[75,11,75,15],[80,7,80,11],[81,7,81,11],[83,7,83,11],[84,1,84,3],[75,7,75,10],[32,9,32,15],[61,1,61,5],[59,1,59,5],[54,1,58,2],[57,3,57,5],[58,3,58,5],[60,1,60,5],[53,1,53,5],[70,1,70,5],[62,1,62,5],[65,1,65,5],[70,6,70,15],[72,1,72,15],[109,6,109,13],[91,9,93,16],[94,9,94,14],[94,15,94,16],[95,9,95,12],[95,13,95,16],[96,9,96,16],[104,6,106,13],[107,6,107,11],[107,12,107,13],[108,6,108,9],[108,10,108,13],[88,0,88,14],[82,4,82,6],[83,4,83,6],[84,4,84,6],[83,1,83,3],[85,4,85,6],[82,7,82,11],[87,1,87,3],[12,5,12,6],[13,5,13,6],[18,2,18,3],[33,3,33,5],[33,9,33,15],[86,4,86,6],[78,12,78,14],[79,12,79,15],[73,5,73,6],[74,5,74,6],[75,5,75,6],[74,1,74,4],[73,1,73,4],[75,1,75,4],[79,1,79,3],[24,3,24,4]]}
["APPENDIX \"A\""]
["   PART 1:  PROJECT DESCRIPTION"]
[]
[]
[]
[null,"Project Name & Civic Address",null,null,null,null,null,null,"Recipient Name & Contact Information"]
[]
[]
[]
[]
[]
[null,"Land/Building Ownership",null,null,null,null,null,null,"Recipient Incorporation and Licensing"]
[null,null,"Owned by Recipient",null,null,null,null,null,"__","Non-Profit Incorporation:",null,null,null,null,null,null,null,null,null,null,null,"X"]
[null,"__","Leased",null,null,null,null,null,"__","Other (specify):"]
[null,null,null,null,null,null,null,null,"Date of Incorporation or Registration in NS:   "]
[null,null,null,null,null,null,null,null,"Facility Licenses (if applicable):"]
[]
[null,"Project Type",null,null,null,null,null,null,"Designated Language Program"]
[null,"__","Construction of a new centre",null,"__","Addition to an existing centre",null,null,"__","Français ",null,null,"__","French/English Bilingual"]
[null,"__","Renovations to existing centre/site",null,"__","Other (specify)",null,null,"__","French Immersion",null,null,"__","Other (Specify):"]
[null,null,null,null,null,null,null,null,null,null,null,null,null,null,null,null,null,null,null,null,null,2]
[null,"Licensed Spaces",null,null,null,null,null,null,"Energy Efficiency and Consistency Confirmation",null,null,null,null,null,null,null,null,null,null,null,null,3]
[null,null,null,"Existing Licensed Spaces (B)",null,"Total Spaces upon Project Completion (A)","Increase (A - B)",null,"__","Green Buildings Program",null,null,null,null,null,null,null,null,null,null,null,4]
[null,null,null,null,null,null,null,null,"__","Accessibility standards",null,null,null,null,null,null,null,null,null,null,null,5]
[null,"Infant",null,null,null,null,{"$f":"F25-D25","v":0},null,"__","Other (specify):",null,null,null,null,null,null,null,null,null,null,null,6]
[null,"Toddler",null,null,null,null,{"$f":"F26-D26","v":0},null,"__","Other (specify):",null,null,null,null,null,null,null,null,null,null,null,7]
[null,"Preschool",null,null,null,null,{"$f":"F27-D27","v":0}]
[null,"School Age",null,null,null,null,{"$f":"F28-D28","v":0},null,null,null,null,null,null,null,null,null,null,null,null,null,null,8]
[null,"Total",null,{"$f":"SUM(D25:D28)","v":0},null,{"$f":"SUM(F25:F28)","v":0},{"$f":"F29-D29","v":0}]
[null,null,null,null,null,null,null,null,null,null,null,null,null,null,null,null,null,null,null,null,null,11]
[null,"Zoning and Occupancy Information ",null,null,null,null,null,null,"Proposed Construction Contract",null,null,null,null,null,null,null,null,null,null,null,null,12]
[null,"__","Subdivision Required",null,null,"Current Zoning: ",null,null,"__","General Tender",null,null,null,null,null,null,null,null,null,null,null,13]
[null,"__","Variances Required",null,null,"Required Zoning:",null,null,"__","Construction Management",null,null,null,null,null,null,null,null,null,null,null,14]
[null,null,null,"Required Occupancy Classification:",null,null,null,null,"__","Other (specify): ",null,null,null,null,null,null,null,null,null,null,null,15]
[null,null,null,null,null,null," "]
[]
[]
[null,"Function",null,"Description of room",null,null,"Function Area","Nap Area",null,"Natural Light","Number of toilets/\nurinals","Number of \nhand basins",null,"Licensed Spaces / Room\nD= Dedicated Spaces\nS = Shared Spaces"]
[null,null,null,null,null,null,null,null,null,null,null,null,null,null,null,null,null,null,null,null,null,"Select"]
[null,null,null,null,null,null,null,null,null,null,null,null,null,null,null,null,null,null,null,null,null,"Infant"]
[null,"Play Space","Select",null,null,null,null,null,null,null,null,null,null,null,null,null,null,null,null,null,null,"Preschool"]
[null,null,"Select",null,null,null,null,null,null,null,null,null,null,null,null,null,null,null,null,null,null,"School Age"]
[null,null,"Select"]
[null,null,"Select"]
[null,null,"Select"]
[null,null,"Select"]
[null,null,"Select"]
[null,null,"Select"]
[null,null,"Select"]
[null,"a - Total Play Space ",null,null,null,null,{"$f":"SUM(G41:G49)","v":0},0,null,{"$f":"SUM(J41:J49)","v":0},{"$f":"SUM(K41:K49)","v":0},0]
[null,"Circulation",null,"Corridors and Lobby"]
[null,null,null,"Stairs"]
[null,null,null,"Elevators"]
[null,"b - Total Circulation",null,null,null,null,{"$f":"SUM(G51:G53)","v":0}]
[null,"Additional Space \n\n(e.g. kitchen, staff office, storage, etc)"]
[]
[]
[]
[]
[null,"c - Additional Space",null,null,null,null,{"$f":"SUM(G55:G59)","v":0}]
[null,"SUMMARY"]
[null,"a - Total Play Area",null,null,null,null,{"$f":"G50","v":0}]
[null,"b - Total Storage",null,null,null,null,{"$f":"G60","v":0}]
[null,"c - Total Service Rooms",null,null,null,null,{"$f":"#REF!","v":{"$error":"#REF!"}}]
[null,"d - Total Circulation",null,null,null,null,{"$f":"G54","v":0}]
[null,"d - Gross Building or Project Area (a+b+c+d)",null,null,null,null,{"$f":"G54+G60+G50","v":0}]
[null,"Onsite Outdoor Play Space (onsite)"]
[]
[]
[]
[null,"HST REGISTRATION NUMBER:",null,null,null,null,"[enter HST Registration Number]"]
[]
[null,"PROJECTED TIMELINE:"]
[null,"Property Possession Date:",null,null,null,"Construction Tender Date",null,"Construction Start Date",null,null,null,"Occupancy Date"]
[null,"YY/MM/DD",null,null,null,"YY/MM/DD",null,"YY/MM/DD",null,null,null,"YY/MM/DD"]
[null,"[enter date]",null,null,null,"[enter date]",null,"[enter date]",null,null,null,"[enter date]"]
[]
[]
[]
[null,"Contact Information",null,null,"Address",null,null,"Contact Person & Title",null,null,null,null,"Phone #"]
[null,"Architectural Firm",null,null,"[Address]",null,null,"[Name, Title]",null,null,null,null,"[Phone Number]"]
[null,"[enter name]",null,null,"[City/Town, NS POSTAL CODE]"]
[null,"Contractor",null,null,"[Address]",null,null,"[Name, Title]",null,null,null,null,"[Phone Number]"]
[null,"[enter name]",null,null,"[City/Town, NS POSTAL CODE]"]
[null,"Law Firm",null,null,"[Address]",null,null,"[Name, Title]",null,null,null,null,"[Phone Number]"]
[null,"[enter name]",null,null,"[City/Town, NS POSTAL CODE]"]
[null,"Public Health Inspector:",null,null,"[Address]",null,null,"[Name, Title]",null,null,null,null,"[Phone Number]"]
[null,"[enter name]",null,null,"[City/Town, NS  POSTAL CODE]"]
[]
[]
[]
[null,null,null,null,null,null,null,null,null,"I certify that this is a true description of the Project as of the date set out below:"]
[]
[]
[null,null,null,null,null,null,null,null,null,"Initials of Authorized Officer of the Recipient:",null,null,null,null,null,"______________"]
[null,null,null,null,null,null,null,null,null,"Date:",null,null,null,"_____________________"]

{"sheet":"Appendix A Part 2","index":1,"n_rows":39,"n_cols":23,"rows_kept":39,"cut":false,"hidden":false,"merged":[[6,1,6,10],[6,11,6,16],[25,17,26,19],[25,5,25,6],[0,1,0,19],[2,1,2,19],[7,1,7,16],[10,3,10,6],[20,1,20,16],[16,1,16,11],[16,12,16,16],[17,1,17,4],[18,5,18,16],[17,5,17,16],[18,1,18,4],[14,1,14,16],[19,1,19,4],[19,5,19,16],[8,1,8,16],[13,1,13,16],[9,1,9,16],[11,1,11,16],[12,1,12,16]]}
[null,"APPENDIX \"A\""]
[]
[]
[null,"PART 2:  ESTIMATED PROJECT COSTS "]
[]
[null,"Project Costs",null,null,null,null,null,null,null,null,null,null,null,null,null,null,null,"Recipient's Estimate of Costs (excluding HST)","Estimated HST     \n(less rebated amount)","Projected Cost"]
[null,"1. Architect/Engineering/other Consulting Fees (specify):"]
[null,"2. Development/Project Management Fees"]
[null,"3. Permits/Other Development Fees"]
[null,"4. Construction",null,null,null,null,null,null,null,null,null,null,null,null,null,null,null,null,null,null,null,null,"Select"]
[null,"Based on:",null,"Select",null,null,null,null,null,null,null,null,null,null,null,null,null,null,null,null,null,null,"Class D Estimate"]
[null,"5. Rehabilitation/Conversion/Demolition",null,null,null,null,null,null,null,null,null,null,null,null,null,null,null,null,null,null,null,null,"Class C Estimate"]
[null,"6. Onsite Servicing",null,null,null,null,null,null,null,null,null,null,null,null,null,null,null,null,null,null,null,null,"Class B Estimate"]
[null,"7. Landscaping",null,null,null,null,null,null,null,null,null,null,null,null,null,null,null,null,null,null,null,null,"Class A Estimate"]
[null,"8. Outdoor Play Space",null,null,null,null,null,null,null,null,null,null,null,null,null,null,null,null,null,null,null,null,"Tender Result"]
[null,"9. Furniture, fixtures, and equipment"]
[null,"10. Contingency",null,null,null,null,null,null,null,null,null,null,null,null,null,null,null,null,null,null,null,null,"Final Cost"]
[null,"11. Other (specify):"]
[null,"12. Other (specify):"]
[null,"13. Other (specify):"]
[null,"TOTAL PROJECT COSTS",null,null,null,null,null,null,null,null,null,null,null,null,null,null,null,{"$f":"SUM(R7:R20)","v":0},{"$f":"SUM(S7:S20)","v":0},0]
[]
[]
[]
[]
[null,"HST rebate %",null,null,null,null,null,null,null,null,null,null,null,null,null,null,null,"I certify that this is a true description of the Project as of the date set out below:"]
[]
[]
[null,null,null,null,null,null,null,null,null,null,null,null,null,null,null,null,null,"Initials of Authorized Officer of the Recipient:  ",null,"__________"]
[null,null,null,null,null,null,null,null,null,null,null,null,null,null,null,null,null,"Date:","__________________________"]
[]
[]
[]
[]
[]
[]
[]
[]
[{"$f":"39:375","v":0}]